fUSD/lending_fUSD_20250507
["ID","MTS","AMOUNT","RATE_DAILY","PERIOD"]
[360166030,1746587357633,500.0,0.00019449,2]
[360166031,1746587362323,150.0,0.0003,30]
[360166032,1746587363594,194.49894395,0.0003,30]
[360166033,1746587364658,500.0,0.0003,30]
[360166034,1746587367299,500.0,0.0003,30]
[360166035,1746587372310,789.699,0.00019449,2]
[360166036,1746587384881,6022.15675597,0.0001947,2]
[360166037,1746587403221,151.04778633,0.0003,30]
[360166038,1746587410977,157.6516475,0.0003,30]
[360166039,1746587412286,500.0,0.0003,30]
[360166040,1746587415254,729.0,0.0003,30]
[360166041,1746587421554,500.0,0.0003,30]
[360166042,1746587423197,153.63877397,0.0003,30]
[360166043,1746587425373,500.0,0.0003,30]
[360166048,1746587432216,-151.0,0.00019501,2]
[360166049,1746587432226,-250.0,0.00019502,2]
[360166050,1746587432235,-199.015,0.00019503,2]
[360166051,1746587432268,-1000.985,0.00019503,2]
[360166052,1746587432278,-300.0,0.00019503,2]
[360166053,1746587432287,-500.0,0.00019504,2]
[360166054,1746587432297,-500.0,0.00019504,2]
[360166055,1746587432306,-500.0,0.00019504,2]
[360166056,1746587432315,-500.0,0.00019504,2]
[360166057,1746587432325,-500.0,0.00019504,2]
[360166058,1746587432334,-431.3132206,0.00019504,2]
[360166059,1746587432343,-500.0,0.00019504,2]
[360166060,1746587432352,-500.0,0.00019504,2]
[360166061,1746587432362,-500.0,0.00019504,2]
[360166062,1746587432371,-500.0,0.00019504,2]
[360166063,1746587432381,-500.0,0.00019504,2]
[360166064,1746587432390,-500.0,0.00019504,2]
[360166065,1746587432399,-500.0,0.00019504,2]
[360166066,1746587432408,-500.0,0.00019504,2]
[360166067,1746587432418,-500.0,0.00019504,2]
[360166068,1746587432427,-480.21224964,0.00019504,2]
[360166069,1746587432436,-500.0,0.00019504,2]
[360166070,1746587432445,-500.0,0.00019504,2]
[360166071,1746587432454,-500.0,0.00019504,2]
[360166072,1746587432463,-500.0,0.00019504,2]
[360166073,1746587432472,-500.0,0.00019504,2]
[360166074,1746587432481,-500.0,0.00019504,2]
[360166075,1746587432491,-500.0,0.00019504,2]
[360166076,1746587432500,-500.0,0.00019504,2]
[360166077,1746587432510,-500.0,0.00019504,2]
[360166078,1746587432519,-500.0,0.00019504,2]
[360166079,1746587432528,-500.0,0.00019504,2]
[360166080,1746587432537,-500.0,0.00019504,2]
[360166081,1746587432546,-500.0,0.00019504,2]
[360166082,1746587432555,-500.0,0.00019504,2]
[360166083,1746587432564,-500.0,0.00019504,2]
[360166084,1746587432574,-500.0,0.00019504,2]
[360166085,1746587432583,-500.0,0.00019504,2]
[360166086,1746587432592,-500.0,0.00019504,2]
[360166087,1746587432601,-500.0,0.00019504,2]
[360166088,1746587432611,-500.0,0.00019504,2]
[360166089,1746587432619,-500.0,0.00019504,2]
[360166090,1746587432629,-500.0,0.00019504,2]
[360166091,1746587432638,-500.0,0.00019504,2]
[360166093,1746587432647,-500.0,0.00019504,2]
[360166095,1746587432656,-500.0,0.00019504,2]
[360166097,1746587432666,-500.0,0.00019504,2]
[360166099,1746587432675,-500.0,0.00019504,2]
[360166101,1746587432685,-500.0,0.00019504,2]
[360166103,1746587432695,-500.0,0.00019504,2]
[360166104,1746587432704,-500.0,0.00019504,2]
[360166106,1746587432714,-500.0,0.00019504,2]
[360166108,1746587432723,-244.08245239,0.00019504,2]
[360166110,1746587432733,-500.0,0.00019504,2]
[360166112,1746587432743,-500.0,0.00019504,2]
[360166114,1746587432755,-500.0,0.00019504,2]
[360166116,1746587432764,-500.0,0.00019504,2]
[360166118,1746587432773,-500.0,0.00019504,2]
[360166120,1746587432782,-500.0,0.00019504,2]
[360166122,1746587432792,-500.0,0.00019504,2]
[360166124,1746587432801,-500.0,0.00019504,2]
[360166126,1746587432810,-500.0,0.00019504,2]
[360166128,1746587432819,-500.0,0.00019504,2]
[360166130,1746587432830,-500.0,0.00019504,2]
[360166132,1746587432839,-500.0,0.00019504,2]
[360166134,1746587432848,-500.0,0.00019504,2]
[360166135,1746587432857,-500.0,0.00019504,2]
[360166136,1746587432867,-500.0,0.00019504,2]
[360166137,1746587432876,-500.0,0.00019504,2]
[360166138,1746587432885,-500.0,0.00019504,2]
[360166139,1746587432894,-500.0,0.00019504,2]
[360166140,1746587432903,-500.0,0.00019504,2]
[360166141,1746587432913,-500.0,0.00019504,2]
[360166142,1746587432922,-500.0,0.00019504,2]
[360166143,1746587432931,-594.5895958,0.00019504,2]
[360166144,1746587432940,-500.0,0.00019504,2]
[360166145,1746587432950,-500.0,0.00019504,2]
[360166146,1746587432959,-500.0,0.00019504,2]
[360166147,1746587432968,-500.0,0.00019504,2]
[360166148,1746587432977,-500.0,0.00019504,2]
[360166149,1746587432986,-500.0,0.00019504,2]
[360166150,1746587432995,-500.0,0.00019504,2]
[360166151,1746587433004,-98372.49397553,0.00019505,2]
[360166152,1746587433013,-1517.99901063,0.00019505,2]
[360166153,1746587433025,-482.00098937,0.00019505,2]
[360166154,1746587433035,-200.0,0.00019505,2]
[360166155,1746587433044,-6022.15675595,0.00019518,2]
[360166156,1746587433053,-207.4,0.00019538,2]
[360166157,1746587433062,-1454.08062768,0.00019539,2]
[360166158,1746587433085,-6324.29,0.00019539,2]
[360166159,1746587433097,-411.8444199,0.00019539,2]
[360166160,1746587433108,-583.18548524,0.00019539,2]
[360166161,1746587433120,-1338.89827987,0.00019539,2]
[360166162,1746587433129,-337.46896334,0.00019548,2]
[360166163,1746587433139,-450.0,0.00019549,2]
[360166164,1746587433149,-450.0,0.00019549,2]
[360166165,1746587433159,-194.56083758,0.00019549,2]
[360166166,1746587433169,-450.0,0.00019549,2]
[360166167,1746587433178,-70.19191921,0.00019549,2]
[360166168,1746587433193,-379.80808079,0.00019549,2]
[360166169,1746587433204,-497.58080491,0.00019549,2]
[360166170,1746587433213,-450.0,0.00019549,2]
[360166171,1746587433223,-418.80251295,0.00019549,2]
[360166172,1746587433234,-31.19748705,0.00019549,2]
[360166173,1746587433244,-450.0,0.00019549,2]
[360166174,1746587433254,-450.0,0.00019549,2]
[360166175,1746587433264,-450.0,0.00019549,2]
[360166176,1746587433274,-450.0,0.00019549,2]
[360166177,1746587433284,-5.40251294,0.00019549,2]
[360166178,1746587433296,-444.59748706,0.00019549,2]
[360166179,1746587433306,-99.42251294,0.00019549,2]
[360166182,1746587438368,-350.57748706,0.00019549,2]
[360166183,1746587438377,-450.0,0.00019549,2]
[360166184,1746587438387,-450.0,0.00019549,2]
[360166185,1746587438396,-450.0,0.00019549,2]
[360166186,1746587438406,-450.0,0.00019549,2]
[360166187,1746587438414,-123.8325129,0.00019549,2]
[360166188,1746587438426,-326.1674871,0.00019549,2]
[360166189,1746587438435,-431.29792834,0.00019549,2]
[360166190,1746587438447,-104.69207166,0.00019549,2]
[360166191,1746587438456,-318.05792759,0.00019549,2]
[360166192,1746587438468,-131.94207241,0.00019549,2]
[360166193,1746587438477,-450.0,0.00019549,2]
[360166194,1746587438708,-450.0,0.00019549,2]
[360166195,1746587438718,-450.0,0.00019549,2]
[360166196,1746587438728,-54.57792759,0.00019549,2]
[360166197,1746587438747,-316.73,0.00019549,2]
[360166198,1746587438758,-260.35207241,0.00019549,2]
[360166199,1746587438768,-450.0,0.00019549,2]
[360166200,1746587438777,-450.0,0.00019549,2]
[360166201,1746587438787,-668.25,0.00019549,2]
[360166202,1746587438796,-450.0,0.00019549,2]
[360166203,1746587438805,-450.0,0.00019549,2]
[360166204,1746587438815,-450.0,0.00019549,2]
[360166205,1746587438826,-450.0,0.00019549,2]
[360166206,1746587438835,-450.0,0.00019549,2]
[360166207,1746587438845,-343.90661767,0.00019549,2]
[360166208,1746587438854,-450.0,0.00019549,2]
[360166209,1746587438864,-760.47,0.00019549,2]
[360166210,1746587438873,-592.64545356,0.00019549,2]
[360166211,1746587438883,-460.31,0.00019549,2]
[360166212,1746587438892,-22.46585656,0.00019549,2]
[360166213,1746587438909,-427.53414344,0.00019549,2]
[360166214,1746587438918,-490.0,0.00019549,2]
[360166215,1746587438927,-96.34908617,0.00019549,2]
[360166216,1746587438938,-353.65091383,0.00019549,2]
[360166217,1746587438948,-450.0,0.00019549,2]
[360166219,1746587438959,-750.67,0.00019549,2]
[360166221,1746587438968,-476.98,0.00019549,2]
[360166223,1746587438977,-450.0,0.00019549,2]
[360166225,1746587438986,-510.0,0.00019549,2]
[360166227,1746587438995,-450.0,0.00019549,2]
[360166229,1746587439004,-450.0,0.00019549,2]
[360166231,1746587439013,-450.0,0.00019549,2]
[360166233,1746587439023,-450.0,0.00019549,2]
[360166235,1746587439032,-327.62224524,0.00019549,2]
[360166238,1746587439051,-122.37775476,0.00019549,2]
[360166240,1746587439061,-450.0,0.00019549,2]
[360166242,1746587439070,-450.0,0.00019549,2]
[360166243,1746587439080,-450.0,0.00019549,2]
[360166244,1746587439089,-450.0,0.00019549,2]
[360166245,1746587439099,-450.0,0.0001955,2]
[360166246,1746587439108,-460.94737483,0.0001955,2]
[360166247,1746587439118,-579.15454204,0.0001955,2]
[360166248,1746587439127,-450.0,0.0001955,2]
[360166249,1746587439136,-450.0,0.0001955,2]
[360166250,1746587439146,-450.0,0.0001955,2]
[360166251,1746587439156,-405.49534162,0.0001955,2]
[360166252,1746587439166,-450.0,0.0001955,2]
[360166253,1746587439175,-450.0,0.0001955,2]
[360166254,1746587439185,-420.43,0.0001955,2]
[360166255,1746587439194,-550.0,0.0001955,2]
[360166256,1746587439204,-450.0,0.0001955,2]
[360166257,1746587439213,-450.0,0.0001955,2]
[360166258,1746587439221,-307.18625807,0.0001955,2]
[360166259,1746587439230,-618.31,0.0001955,2]
[360166260,1746587439239,-450.0,0.0001955,2]
[360166261,1746587439248,-450.0,0.0001955,2]
[360166262,1746587439257,-325.04422388,0.0001955,2]
[360166263,1746587439274,-124.95577612,0.0001955,2]
[360166264,1746587439283,-353.78113988,0.0001955,2]
[360166268,1746587440842,-96.21886012,0.0001955,2]
[360166269,1746587440851,-450.0,0.0001955,2]
[360166270,1746587440860,-450.0,0.0001955,2]
[360166271,1746587440869,-450.0,0.0001955,2]
[360166272,1746587440878,-450.0,0.0001955,2]
[360166273,1746587440887,-450.0,0.0001955,2]
[360166274,1746587440897,-450.0,0.0001955,2]
[360166275,1746587440906,-450.0,0.0001955,2]
[360166276,1746587440916,-4784.43847549,0.0001955,2]
[360166277,1746587440926,-307.40473349,0.00019554,2]
[360166278,1746587440936,-281.43409888,0.00019556,2]
[360166279,1746587440945,-155.0,0.00019558,2]
[360166280,1746587440955,-151.0,0.00019558,2]
[360166281,1746587440965,-151.0,0.00019558,2]
[360166282,1746587440974,-668.65185757,0.00019558,2]
[360166283,1746587440984,-151.0,0.00019558,2]
[360166284,1746587440994,-151.0,0.00019558,2]
[360166285,1746587441004,-333.79,0.00019559,2]
[360166286,1746587441014,-894.78,0.00019559,2]
[360166287,1746587441024,-150.99,0.00019559,2]
[360166288,1746587441034,-811.84,0.00019559,2]
[360166289,1746587441044,-2769.26,0.00019559,2]
[360166290,1746587441054,-6022.15675595,0.00019565,2]
[360166291,1746587441064,-450.0,0.00019568,2]
[360166292,1746587441074,-450.0,0.00019568,2]
[360166293,1746587441084,-450.0,0.00019568,2]
[360166294,1746587441093,-450.0,0.00019568,2]
[360166295,1746587441102,-450.0,0.00019568,2]
[360166296,1746587441112,-450.0,0.00019568,2]
[360166297,1746587441122,-450.0,0.00019568,2]
[360166298,1746587441131,-450.0,0.00019568,2]
[360166299,1746587441142,-450.0,0.00019569,2]
[360166300,1746587441152,-291.87917779,0.00019569,2]
[360166301,1746587441162,-450.0,0.00019569,2]
[360166302,1746587441173,-450.0,0.00019569,2]
[360166303,1746587441183,-450.0,0.00019569,2]
[360166304,1746587441193,-450.0,0.00019569,2]
[360166305,1746587441203,-450.0,0.00019569,2]
[360166306,1746587441213,-204.91379864,0.00019569,2]
[360166307,1746587441223,-450.0,0.00019569,2]
[360166308,1746587441233,-470.0,0.00019569,2]
[360166309,1746587441242,-450.0,0.00019569,2]
[360166310,1746587441251,-558.48241076,0.00019569,2]
[360166311,1746587441261,-450.0,0.00019569,2]
[360166312,1746587441271,-450.0,0.00019569,2]
[360166313,1746587441280,-450.0,0.00019569,2]
[360166314,1746587441289,-382.04556753,0.00019569,2]
[360166315,1746587441298,-463.27639644,0.00019569,2]
[360166316,1746587441307,-450.0,0.00019569,2]
[360166317,1746587441316,-463.0453981,0.00019569,2]
[360166318,1746587441327,-450.0,0.00019569,2]
[360166319,1746587441336,-450.0,0.00019569,2]
[360166320,1746587441346,-450.0,0.00019569,2]
[360166321,1746587441355,-450.0,0.00019569,2]
[360166322,1746587441364,-450.0,0.00019569,2]
[360166323,1746587441373,-450.0,0.00019569,2]
[360166324,1746587441382,-450.0,0.00019569,2]
[360166325,1746587441392,-474.72,0.00019569,2]
[360166326,1746587441401,-457.47,0.00019569,2]
[360166327,1746587441412,-450.0,0.00019569,2]
[360166328,1746587441424,-310.84589902,0.00019569,2]
[360166329,1746587441438,-731.05,0.00019569,2]
[360166330,1746587441451,-450.0,0.00019569,2]
[360166331,1746587441463,-450.0,0.00019569,2]
[360166332,1746587441473,-450.0,0.00019569,2]
[360166333,1746587441484,-450.0,0.00019569,2]
[360166334,1746587441496,-450.0,0.00019569,2]
[360166335,1746587441509,-500.0,0.00019569,2]
[360166336,1746587441520,-400.0,0.00019569,2]
[360166337,1746587441532,-530.33062322,0.00019569,2]
[360166338,1746587441544,-450.0,0.00019569,2]
[360166339,1746587441557,-569.36619781,0.00019569,2]
[360166340,1746587441568,-592.85353431,0.00019569,2]
[360166341,1746587441583,-450.0,0.00019569,2]
[360166342,1746587441595,-450.0,0.00019569,2]
[360166343,1746587441604,-470.0,0.00019569,2]
[360166344,1746587441615,-500.0,0.00019569,2]
[360166345,1746587441627,-450.0,0.00019569,2]
[360166346,1746587441639,-481.99914394,0.00019569,2]
[360166347,1746587441652,-450.0,0.00019569,2]
[360166348,1746587441664,-450.0,0.00019569,2]
[360166349,1746587441676,-450.0,0.00019569,2]
[360166350,1746587441688,-470.0,0.00019569,2]
[360166351,1746587441700,-589.1,0.00019569,2]
[360166352,1746587441713,-569.81802045,0.00019569,2]
[360166353,1746587441725,-450.0,0.00019569,2]
[360166354,1746587441737,-470.0,0.00019569,2]
[360166355,1746587441751,-1019.86256743,0.00019569,2]
[360166356,1746587441765,-459.49473708,0.00019569,2]
[360166357,1746587441778,-450.0,0.00019569,2]
[360166358,1746587441790,-450.0,0.00019569,2]
[360166359,1746587441802,-450.0,0.00019569,2]
[360166360,1746587441815,-450.0,0.00019569,2]
[360166361,1746587441826,-532.0034046,0.00019569,2]
[360166362,1746587441842,-1898.99,0.00019569,2]
[360166363,1746587441855,-450.0,0.00019569,2]
[360166364,1746587441867,-470.0,0.00019569,2]
[360166365,1746587441884,-1071.76,0.00019569,2]
[360166366,1746587441897,-450.0,0.00019569,2]
[360166367,1746587441910,-450.0,0.00019569,2]
[360166368,1746587441922,-473.81152197,0.00019569,2]
[360166369,1746587441933,-1139.69,0.00019569,2]
[360166370,1746587441943,-566.95645585,0.00019569,2]
[360166371,1746587441954,-466.18678325,0.00019569,2]
[360166372,1746587441964,-461.83108943,0.00019569,2]
[360166373,1746587441977,-450.0,0.00019569,2]
[360166374,1746587441990,-557.76366792,0.00019569,2]
[360166375,1746587442001,-450.0,0.00019569,2]
[360166376,1746587442011,-450.0,0.00019569,2]
[360166377,1746587442022,-450.0,0.00019569,2]
[360166378,1746587442032,-450.0,0.00019569,2]
[360166379,1746587442043,-989.03,0.00019569,2]
[360166380,1746587442055,-470.0,0.00019569,2]
[360166381,1746587442071,-450.0,0.00019569,2]
[360166382,1746587442084,-450.0,0.00019569,2]
[360166383,1746587442098,-474.44122878,0.00019569,2]
[360166384,1746587442109,-450.0,0.00019569,2]
[360166385,1746587442119,-771.81,0.00019569,2]
[360166386,1746587442130,-474.4880952,0.00019569,2]
[360166387,1746587442142,-541.87060825,0.00019569,2]
[360166388,1746587442154,-736.24,0.00019569,2]
[360166389,1746587442166,-565.18,0.00019569,2]
[360166390,1746587442179,-372.93368299,0.00019569,2]
[360166391,1746587442192,-450.0,0.00019569,2]
[360166392,1746587442213,-450.0,0.00019569,2]
[360166393,1746587442225,-450.0,0.00019569,2]
[360166394,1746587442237,-415.43437428,0.00019569,2]
[360166395,1746587442249,-450.0,0.00019569,2]
[360166396,1746587442261,-450.0,0.00019569,2]
[360166397,1746587442273,-450.0,0.00019569,2]
[360166398,1746587442285,-450.0,0.00019569,2]
[360166399,1746587442297,-450.0,0.00019569,2]
[360166400,1746587442309,-459.97,0.00019569,2]
[360166401,1746587442321,-450.0,0.00019569,2]
[360166402,1746587442332,-176.94464404,0.00019569,2]
[360166403,1746587442343,-450.0,0.00019569,2]
[360166404,1746587442355,-450.0,0.00019569,2]
[360166405,1746587442366,-572.88585975,0.00019569,2]
[360166406,1746587442377,-530.22,0.00019569,2]
[360166407,1746587442388,-450.0,0.00019569,2]
[360166408,1746587442399,-450.0,0.00019569,2]
[360166409,1746587442410,-450.0,0.00019569,2]
[360166410,1746587442421,-26031.64,0.00019569,2]
[360166411,1746587442432,-450.0,0.00019569,2]
[360166412,1746587442444,-450.0,0.00019569,2]
[360166413,1746587442455,-450.0,0.00019569,2]
[360166414,1746587442467,-450.0,0.00019569,2]
[360166415,1746587442479,-450.0,0.00019569,2]
[360166416,1746587442491,-450.0,0.00019569,2]
[360166417,1746587442502,-612.8,0.00019569,2]
[360166418,1746587442513,-450.0,0.00019569,2]
[360166419,1746587442524,-450.0,0.00019569,2]
[360166420,1746587442535,-450.0,0.00019569,2]
[360166421,1746587442546,-450.0,0.00019569,2]
[360166422,1746587442557,-366.31219986,0.00019569,2]
[360166423,1746587442569,-450.0,0.00019569,2]
[360166424,1746587442580,-450.0,0.00019569,2]
[360166425,1746587442591,-450.0,0.00019569,2]
[360166426,1746587442602,-450.0,0.00019569,2]
[360166427,1746587442624,-450.0,0.00019569,2]
[360166428,1746587442640,-450.0,0.00019569,2]
[360166429,1746587442653,-450.0,0.00019569,2]
[360166430,1746587442666,-450.0,0.00019569,2]
[360166431,1746587442679,-450.0,0.00019569,2]
[360166432,1746587442693,-450.0,0.00019569,2]
[360166433,1746587442706,-450.0,0.00019569,2]
[360166434,1746587442719,-450.0,0.00019569,2]
[360166435,1746587442731,-500.0,0.00019569,2]
[360166436,1746587442746,-490.0,0.00019569,2]
[360166437,1746587442759,-450.0,0.00019569,2]
[360166438,1746587442771,-450.0,0.00019569,2]
[360166439,1746587442784,-450.0,0.00019569,2]
[360166440,1746587442797,-450.0,0.00019569,2]
[360166441,1746587442809,-450.0,0.00019569,2]
[360166442,1746587442822,-450.0,0.00019569,2]
[360166443,1746587442834,-450.0,0.00019569,2]
[360166444,1746587442846,-450.0,0.00019569,2]
[360166445,1746587442857,-450.0,0.00019569,2]
[360166446,1746587442869,-450.0,0.00019569,2]
[360166447,1746587442881,-450.0,0.00019569,2]
[360166448,1746587442892,-450.0,0.00019569,2]
[360166449,1746587442904,-450.0,0.00019569,2]
[360166450,1746587442915,-450.0,0.00019569,2]
[360166451,1746587442927,-450.0,0.00019569,2]
[360166452,1746587442938,-450.0,0.00019569,2]
[360166453,1746587442950,-450.0,0.00019569,2]
[360166454,1746587442962,-450.0,0.00019569,2]
[360166455,1746587442973,-1001.79,0.00019569,2]
[360166456,1746587442984,-450.0,0.00019569,2]
[360166457,1746587442995,-450.0,0.00019569,2]
[360166458,1746587443007,-450.0,0.00019569,2]
[360166459,1746587443018,-450.0,0.00019569,2]
[360166460,1746587443029,-1595.53,0.00019569,2]
[360166461,1746587443040,-450.0,0.00019569,2]
[360166462,1746587443051,-450.0,0.00019569,2]
[360166463,1746587443063,-450.0,0.00019569,2]
[360166464,1746587443074,-562.85,0.00019569,2]
[360166465,1746587443086,-450.0,0.00019569,2]
[360166466,1746587443097,-450.0,0.00019569,2]
[360166467,1746587443109,-450.0,0.00019569,2]
[360166468,1746587443120,-450.0,0.00019569,2]
[360166469,1746587443131,-453.4,0.00019569,2]
[360166470,1746587443142,-450.0,0.00019569,2]
[360166471,1746587443154,-955.38,0.00019569,2]
[360166472,1746587443165,-450.0,0.00019569,2]
[360166474,1746587443177,-450.0,0.00019569,2]
[360166475,1746587443188,-450.0,0.00019569,2]
[360166476,1746587443201,-450.0,0.00019569,2]
[360166477,1746587443212,-450.0,0.00019569,2]
[360166478,1746587443224,-450.0,0.00019569,2]
[360166479,1746587443236,-500.0,0.00019569,2]
[360166480,1746587443248,-450.0,0.00019569,2]
[360166481,1746587443259,-450.0,0.00019569,2]
[360166482,1746587443270,-450.0,0.00019569,2]
[360166483,1746587443281,-521.61,0.00019569,2]
[360166484,1746587443292,-450.0,0.00019569,2]
[360166485,1746587443304,-969.36,0.00019569,2]
[360166486,1746587443315,-989.7,0.00019569,2]
[360166487,1746587443325,-450.0,0.00019569,2]
[360166488,1746587443336,-450.0,0.00019569,2]
[360166489,1746587443348,-450.0,0.00019569,2]
[360166490,1746587443359,-1242.08,0.00019569,2]
[360166491,1746587443370,-2272.45,0.00019569,2]
[360166492,1746587443380,-450.0,0.00019569,2]
[360166493,1746587443391,-450.0,0.00019569,2]
[360166494,1746587443402,-450.0,0.00019569,2]
[360166495,1746587443413,-450.0,0.00019569,2]
[360166496,1746587443424,-450.0,0.00019569,2]
[360166497,1746587443435,-450.0,0.00019569,2]
[360166498,1746587443446,-462.38169065,0.00019569,2]
[360166499,1746587443457,-450.0,0.00019569,2]
[360166500,1746587443468,-450.0,0.00019569,2]
[360166501,1746587443479,-186.77213404,0.00019569,2]
[360166502,1746587443490,-450.0,0.00019569,2]
[360166503,1746587443501,-203.56719084,0.00019569,2]
[360166504,1746587443511,-1811.56,0.00019569,2]
[360166505,1746587443522,-452.30386389,0.00019569,2]
[360166506,1746587443533,-610.8,0.00019569,2]
[360166507,1746587443544,-450.0,0.00019569,2]
[360166508,1746587443555,-450.0,0.00019569,2]
[360166509,1746587443566,-450.0,0.00019569,2]
[360166510,1746587443577,-450.0,0.00019569,2]
[360166511,1746587443588,-450.0,0.00019569,2]
[360166512,1746587443599,-450.0,0.00019569,2]
[360166513,1746587443609,-2000.01,0.00019569,2]
[360166514,1746587443619,-450.0,0.00019569,2]
[360166515,1746587443630,-175.309457,0.00019569,2]
[360166516,1746587443641,-645.63,0.00019569,2]
[360166517,1746587443652,-450.0,0.00019569,2]
[360166518,1746587443662,-450.0,0.00019569,2]
[360166519,1746587443672,-450.0,0.00019569,2]
[360166520,1746587443683,-450.0,0.00019569,2]
[360166521,1746587443694,-450.0,0.00019569,2]
[360166522,1746587443704,-423.318285,0.00019569,2]
[360166523,1746587443715,-450.0,0.00019569,2]
[360166524,1746587443726,-572.0,0.00019569,2]
[360166525,1746587443736,-472.37,0.00019569,2]
[360166526,1746587443750,-450.0,0.00019569,2]
[360166527,1746587443760,-337.32,0.00019569,2]
[360166528,1746587443771,-1195.42,0.00019569,2]
[360166529,1746587443782,-450.0,0.00019569,2]
[360166530,1746587443794,-430.46275805,0.00019569,2]
[360166531,1746587443809,-450.0,0.00019569,2]
[360166533,1746587443822,-450.0,0.00019569,2]
[360166535,1746587443834,-450.0,0.00019569,2]
[360166536,1746587443846,-517.74030655,0.00019569,2]
[360166537,1746587443857,-456.29126189,0.00019569,2]
[360166542,1746587444209,-450.0,0.00019569,2]
[360166543,1746587444223,-456.56,0.00019569,2]
[360166544,1746587444236,-450.0,0.00019569,2]
[360166545,1746587444245,-1259.92,0.00019569,2]
[360166546,1746587444255,-568.89454177,0.00019569,2]
[360166547,1746587444264,-450.0,0.00019569,2]
[360166548,1746587444273,-804.96,0.00019569,2]
[360166549,1746587444283,-490.19885,0.00019569,2]
[360166550,1746587444293,-572.61478826,0.00019569,2]
[360166551,1746587444303,-1548.58,0.00019569,2]
[360166552,1746587444312,-567.225333,0.00019569,2]
[360166553,1746587444321,-301.55924443,0.00019569,2]
[360166554,1746587444331,-450.0,0.00019569,2]
[360166555,1746587444340,-450.0,0.00019569,2]
[360166556,1746587444349,-450.0,0.00019569,2]
[360166557,1746587444358,-450.0,0.00019569,2]
[360166558,1746587444367,-450.0,0.00019569,2]
[360166559,1746587444376,-1190.96,0.00019569,2]
[360166560,1746587444386,-450.0,0.0001957,2]
[360166561,1746587444395,-450.0,0.0001957,2]
[360166562,1746587444404,-450.0,0.0001957,2]
[360166563,1746587444414,-450.0,0.0001957,2]
[360166564,1746587444423,-450.0,0.0001957,2]
[360166565,1746587444433,-450.0,0.0001957,2]
[360166566,1746587444442,-450.0,0.0001957,2]
[360166567,1746587444451,-451.26,0.0001957,2]
[360166568,1746587444462,-450.0,0.0001957,2]
[360166569,1746587444471,-184.31145505,0.0001957,2]
[360166570,1746587444480,-450.0,0.0001957,2]
[360166571,1746587444489,-450.0,0.0001957,2]
[360166572,1746587444499,-450.0,0.0001957,2]
[360166573,1746587444508,-535.99,0.0001957,2]
[360166574,1746587444517,-450.0,0.0001957,2]
[360166575,1746587444526,-450.0,0.0001957,2]
[360166576,1746587444535,-450.0,0.0001957,2]
[360166577,1746587444544,-450.0,0.0001957,2]
[360166578,1746587444553,-631.66,0.0001957,2]
[360166579,1746587444562,-450.0,0.0001957,2]